fUSD/lending_fUSD_20251220
["ID","MTS","AMOUNT","RATE_DAILY","PERIOD"]
[399278256,1766233843015,-4845.428,0.00016146,2]
[399278257,1766233843026,-1647.057,0.00016146,2]
[399278258,1766233843035,-160.47,0.00016169,2]
[399278259,1766233843045,-23369.48113223,0.00016266,2]
[399278260,1766233843054,-500.0,0.00016356,2]
[399278261,1766233843064,-262.27,0.0001636,2]
[399278262,1766233843073,-500.0,0.00016438,2]
[399278263,1766233843083,-500.0,0.00016438,2]
[399278264,1766233843092,-500.0,0.00016438,2]
[399278265,1766233843101,-647.05793592,0.00016438,2]
[399278266,1766233843110,-500.0,0.00016438,2]
[399278267,1766233843119,-500.0,0.00016438,2]
[399278268,1766233843129,-500.0,0.00016438,2]
[399278269,1766233843138,-500.0,0.00016438,2]
[399278270,1766233843147,-500.0,0.00016438,2]
[399278271,1766233843157,-500.0,0.00016438,2]
[399278272,1766233843166,-500.0,0.00016438,2]
[399278273,1766233843175,-500.0,0.00016438,2]
[399278274,1766233843184,-500.0,0.00016438,2]
[399278275,1766233843194,-500.0,0.00016438,2]
[399278276,1766233843203,-14934.21,0.00016438,2]
[399278277,1766233843213,-235.76832595,0.00016438,2]
[399278278,1766233843222,-848.0,0.00016519,2]
[399278279,1766233843232,-1000.0,0.00016521,2]
[399278280,1766233843243,-691.6701968,0.00016521,2]
[399278281,1766233843253,-10097.4,0.0001656,2]
[399278282,1766233843262,-12307.0,0.00016567,2]
[399278283,1766233843273,-617.40005154,0.00016612,2]
[399278284,1766233843286,-848.0,0.00016632,2]
[399278285,1766233843296,-848.0,0.00016637,2]
[399278286,1766233843308,-15232.84202752,0.0001666,2]
[399278287,1766233843318,-481.17,0.00016712,2]
[399278288,1766233843328,-969.94,0.00016712,2]
[399278289,1766233843337,-167.75,0.00016712,2]
[399278290,1766233843347,-848.0,0.00016751,2]
[399278291,1766233843356,-715.0,0.00016757,2]
[399278292,1766233843365,-848.0,0.00016799,2]
[399278293,1766233843375,-1214.0,0.000168,2]
[399278294,1766233843384,-848.0,0.0001682,2]
[399278295,1766233843393,-846.45332019,0.0001683,2]
[399278296,1766233843403,-200.0,0.00016864,2]
[399278297,1766233843412,-151.0,0.00016885,2]
[399278298,1766233843421,-151.0,0.00016885,2]
[399278299,1766233843431,-151.0,0.00016885,2]
[399278300,1766233843441,-153.69901864,0.00016885,2]
[399278301,1766233843450,-311.1,0.00016885,2]
[399278302,1766233843459,-287.61899177,0.00016885,2]
[399278303,1766233843469,-10000.0,0.000169,2]
[399278304,1766233843478,-151.0,0.000169,2]
[399278305,1766233843487,-151.0,0.000169,2]
[399278306,1766233843496,-151.0,0.000169,2]
[399278307,1766233843505,-151.0,0.000169,2]
[399278308,1766233843514,-23369.48113223,0.000169,2]
[399278309,1766233843524,-169.13428531,0.000169,2]
[399278310,1766233843533,-170.0006961,0.000169,2]
[399278311,1766233843542,-1989.82329274,0.000169,2]
[399278312,1766233843552,-715.0,0.00016904,2]
[399278313,1766233843561,-848.0,0.00016919,2]
[399278314,1766233843571,-848.0,0.0001693,2]
[399278315,1766233843580,-715.0,0.00016956,2]
[399278316,1766233843590,-217.8076658,0.00016983,2]
[399278317,1766233843600,-500.0,0.00016983,2]
[399278318,1766233843609,-500.0,0.00016986,2]
[399278319,1766233843619,-500.0,0.00016986,2]
[399278320,1766233843629,-169.35939,0.00016986,2]
[399278321,1766233843640,-169.35939,0.00016986,2]
[399278322,1766233843650,-169.35939,0.00016986,2]
[399278323,1766233843664,-169.35939,0.00016986,2]
[399278324,1766233843675,-244.707609,0.00016986,2]
[399278325,1766233843685,-244.707609,0.00016986,2]
[399278326,1766233843694,-244.707609,0.00016986,2]
[399278327,1766233843704,-244.707609,0.00016986,2]
[399278328,1766233843714,-151.0,0.00016986,2]
[399278329,1766233843724,-334526.45,0.00016986,2]
[399278330,1766233843733,-150.0,0.00016986,2]
[399278331,1766233843743,-262.27,0.00016989,2]
[399278332,1766233843754,-258.35726114,0.0001699,2]
[399278333,1766233843763,-258.35726114,0.0001699,2]
[399278334,1766233843773,-848.0,0.00016996,2]
[399278335,1766233843782,-486020.754757,0.00016999,2]
[399278336,1766233843792,-12518.6937006,0.00016999,2]
[399278337,1766233843802,-151.0,0.00016999,2]
[399278338,1766233843812,-151.0,0.00016999,2]
[399278339,1766233843821,-5267.1711654,0.00016999,2]
[399278340,1766233843831,-151.0,0.00016999,2]
[399278341,1766233843840,-151.0,0.00016999,2]
[399278342,1766233843850,-630.0,0.00016999,2]
[399278343,1766233843859,-151.0,0.00016999,2]
[399278344,1766233843869,-3143.7747857,0.00016999,2]
[399278345,1766233843879,-151.0,0.00016999,2]
[399278346,1766233843888,-2076.7007145,0.00016999,2]
[399278347,1766233843898,-151.0,0.00016999,2]
[399278348,1766233843907,-195.35103,0.00016999,2]
[399278349,1766233843917,-151.0,0.00016999,2]
[399278350,1766233843927,-151.0,0.00016999,2]
[399278351,1766233843936,-151.0,0.00016999,2]
[399278352,1766233843948,-156.678396,0.00016999,2]
[399278353,1766233843958,-151.0,0.00016999,2]
[399278354,1766233843967,-151.0,0.00016999,2]
[399278355,1766233843976,-153.983022,0.00016999,2]
[399278356,1766233843987,-151.0,0.00016999,2]
[399278357,1766233843997,-151.0,0.00016999,2]
[399278358,1766233844007,-151.0,0.00016999,2]
[399278359,1766233844017,-151.0,0.00016999,2]
[399278360,1766233844027,-151.0,0.00016999,2]
[399278361,1766233844036,-151.0,0.00016999,2]
[399278362,1766233844046,-182.473102,0.00016999,2]
[399278363,1766233844059,-268.048371,0.00016999,2]
[399278364,1766233844068,-151.0,0.00016999,2]
[399278365,1766233844078,-151.0,0.00016999,2]
[399278366,1766233844088,-133538.61514959,0.00017,2]
[399278367,1766233844098,-260.000001,0.00017,2]
[399278368,1766233844108,-2487975.29148865,0.00017,2]
[399278369,1766233844117,-150.0,0.00017,7]
[399278370,1766233844127,-150.0,0.00017,2]
[399278371,1766233844136,-3566.36577974,0.00017,2]
[399278372,1766233844146,-7032.30254333,0.00017,2]
[399278373,1766233844156,-2367646.09641487,0.00017,2]
[399278374,1766233844480,-350.93007096,0.00011856,2]
[399278375,1766233845684,-505.655,0.00011856,2]
[399278376,1766233845962,-3860.09243218,0.00011856,2]
[399278384,1766234420295,9827.5,0.00010993,2]
[399278385,1766234420318,10000.01,0.00010993,2]
[399278386,1766234420341,10000.01,0.00010993,2]
[399278387,1766234420366,10000.01,0.00010993,2]
[399278388,1766234420388,10000.01,0.00010993,2]
[399278389,1766234420412,10000.01,0.00010993,2]
[399278390,1766234420438,2799.9931,0.00010993,2]
[399278393,1766234439301,-150.0,0.00011091,2]
[399278394,1766234439323,-40.0,0.00011091,2]
[399278395,1766234509193,-2180.689,0.00010871,2]
[399278396,1766234509221,-171.691,0.00010871,2]
[399278398,1766234644809,999.0,0.00011136,3]
[399278416,1766234895615,150.0,0.00010818,2]
[399278417,1766234895762,500.0,0.00010818,2]
[399278418,1766234896128,150.0,0.00010818,2]
[399278419,1766234896844,500.0,0.00010818,2]
[399278420,1766234896881,500.0,0.00010818,2]
[399278421,1766234896917,613.0,0.00010818,2]
[399278422,1766234898589,150.0,0.00010818,2]
[399278423,1766234898875,150.0,0.00010818,2]
[399278424,1766234899509,150.0,0.00010818,2]
[399278425,1766234900380,150.0,0.00010818,2]
[399278426,1766234900524,500.0,0.00010818,2]
[399278427,1766234900820,500.0,0.00010818,2]
[399278428,1766234901442,150.0,0.00010818,2]
[399278429,1766234904003,150.0,0.00010818,2]
[399278430,1766234910197,-150.0,0.00010955,2]
[399278431,1766234910226,-584.32985892,0.00010955,2]
[399278432,1766234910255,-500.0,0.00010955,2]
[399278433,1766234910282,-500.0,0.00010955,2]
[399278434,1766234910310,-613.0,0.00010955,2]
[399278435,1766234910339,-150.0,0.00010955,2]
[399278436,1766234910366,-150.0,0.00010955,2]
[399278437,1766234910394,-150.0,0.00010955,2]
[399278438,1766234910423,-500.0,0.00010955,2]
[399278439,1766234910452,-500.0,0.00010955,2]
[399278440,1766234910479,-194.17176914,0.00010955,2]
[399278441,1766235001538,1200.0,0.00010991,2]
[399278442,1766235001580,300.0,0.00010991,2]
[399278443,1766235024256,169.13428531,0.00010908,2]
[399278457,1766235031645,-6505.90959998,0.00010992,2]
[399278458,1766235031657,-123480.51596129,0.00010992,2]
[399278459,1766235031670,-963.36281014,0.00010992,2]
[399278460,1766235031682,-18441.4,0.00010992,2]
[399278461,1766235031697,-1932.135623,0.00010992,2]
[399278462,1766235031708,-1263.21573289,0.00010992,2]
[399278463,1766235031719,-280.01601492,0.00010992,2]
[399278464,1766235031731,-510.0,0.00010992,2]
[399278465,1766235031743,-594.49,0.00010992,2]
[399278466,1766235031818,-500.0,0.00010992,2]
[399278488,1766235037718,-660.1508,0.00010992,2]
[399278689,1766235039860,-14026.50233629,0.00010992,2]
[399278696,1766235039919,-977.3548262,0.00010992,2]
[399278711,1766235040090,-267.990723,0.00010992,2]
[399278712,1766235040101,-486.525001,0.00010992,2]
[399278713,1766235040112,-829110.43057129,0.00010992,2]
[399278714,1766235040122,-150.0,0.00011008,2]
[399278716,1766235040132,-300.0,0.00011009,2]
[399278718,1766235040141,-500.0,0.00011009,2]
[399278720,1766235040151,-500.0,0.00011009,2]
[399278722,1766235040160,-150.0,0.00011009,2]
[399278724,1766235040170,-500.0,0.00011009,2]
[399278726,1766235040179,-150.0,0.00011009,2]
[399278728,1766235040189,-500.0,0.00011009,2]
[399278730,1766235040202,-500.0,0.00011009,2]
[399278732,1766235040212,-500.0,0.00011009,2]
[399278734,1766235040221,-150.0,0.00011009,2]
[399278736,1766235040231,-500.0,0.00011009,2]
[399278738,1766235040240,-805.0,0.00011009,2]
[399278740,1766235040251,-150.0,0.00011009,2]
[399278742,1766235040260,-500.0,0.00011009,2]
[399278744,1766235040270,-1143.54,0.00011086,2]
[399278746,1766235040279,-500.0,0.00011086,2]
[399278748,1766235040288,-500.0,0.00011086,2]
[399278750,1766235040297,-200.0,0.00011086,2]
[399278752,1766235040307,-500.0,0.00011086,2]
[399278754,1766235040317,-500.0,0.00011086,2]
[399278757,1766235040336,-500.0,0.00011086,2]
[399278759,1766235040345,-200.0,0.00011086,2]
[399278761,1766235040354,-500.0,0.00011086,2]
[399278763,1766235040363,-500.0,0.00011086,2]
[399278765,1766235040372,-500.0,0.00011086,2]
[399278767,1766235040382,-500.0,0.00011086,2]
[399278769,1766235040391,-500.0,0.00011086,2]
[399278771,1766235040401,-500.0,0.00011086,2]
[399278773,1766235040410,-500.0,0.00011086,2]
[399278775,1766235040419,-151.0,0.00011086,2]
[399278777,1766235040429,-500.0,0.00011086,2]
[399278779,1766235040439,-151.0,0.00011086,2]
[399278781,1766235040448,-500.0,0.00011086,2]
[399278783,1766235040457,-151.0,0.00011086,2]
[399278785,1766235040467,-500.0,0.00011086,2]
[399278789,1766235040478,-151.0,0.00011086,2]
[399278792,1766235040487,-200.0,0.00011086,2]
[399278794,1766235040497,-500.0,0.00011086,2]
[399278796,1766235040507,-151.0,0.00011086,2]
[399278799,1766235040517,-500.0,0.00011086,2]
[399278801,1766235040526,-151.0,0.00011086,2]
[399278803,1766235040535,-500.0,0.00011086,2]
[399278805,1766235040543,-151.0,0.00011086,2]
[399278807,1766235040553,-500.0,0.00011086,2]
[399278809,1766235040562,-151.0,0.00011086,2]
[399278811,1766235040571,-151.0,0.00011086,2]
[399278813,1766235040580,-151.0,0.00011086,2]
[399278815,1766235040590,-151.0,0.00011086,2]
[399278817,1766235040599,-500.0,0.00011086,2]
[399278819,1766235040607,-250.0,0.00011092,2]
[399278821,1766235040616,-500.0,0.00011092,2]
[399278823,1766235040626,-500.0,0.00011092,2]
[399278825,1766235040635,-613.0,0.00011092,2]
[399278827,1766235040644,-200.0,0.00011092,2]
[399278829,1766235040653,-200.0,0.00011092,2]
[399278831,1766235040662,-200.0,0.00011092,2]
[399278833,1766235040672,-500.0,0.00011092,2]
[399278835,1766235040680,-500.0,0.00011092,2]
[399278837,1766235040690,-21117.31244402,0.00011099,2]
[399278839,1766235040700,-28929.57302549,0.00011099,2]
[399278841,1766235040709,-1000.0,0.00011135,2]
[399278843,1766235040718,-500.0,0.00011146,2]
[399278845,1766235040727,-500.0,0.00011146,2]
[399278847,1766235040736,-150.0,0.00011146,2]
[399278849,1766235040745,-500.0,0.00011146,2]
[399278851,1766235040754,-150.0,0.00011146,2]
[399278853,1766235040763,-500.0,0.00011146,2]
[399278855,1766235040772,-9999.99,0.00011146,2]
[399278857,1766235040781,-50075.86,0.00011146,2]
[399278859,1766235040790,-299.99,0.00011146,2]
[399278861,1766235040799,-500.0,0.00011146,2]
[399278863,1766235040808,-500.0,0.00011146,2]
[399278865,1766235040817,-150.0,0.00011146,2]
[399278867,1766235040827,-500.0,0.00011146,2]
[399278869,1766235040836,-805.0,0.00011146,2]
[399278871,1766235040845,-500.0,0.00011146,2]
[399278873,1766235040855,-1000.0,0.0001119,2]
[399278875,1766235040864,-28736.2992,0.0001119,2]
[399278877,1766235040873,-499.99,0.0001119,2]
[399278879,1766235040884,-2510.24,0.0001119,2]
[399278881,1766235040894,-150.99,0.0001119,2]
[399278883,1766235040903,-4999.99,0.0001119,2]
[399278885,1766235040912,-999.99,0.0001119,2]
[399278887,1766235040921,-9999.99,0.0001119,2]
[399278919,1766235041209,-150.99,0.0001119,2]
[399278922,1766235041221,-9999.99,0.0001119,2]
[399278924,1766235041230,-500.0,0.00011229,2]
[399278926,1766235041239,-500.0,0.00011229,2]
[399278928,1766235041249,-613.0,0.00011229,2]
[399278930,1766235041258,-500.0,0.00011229,2]
[399278931,1766235041267,-437.68541436,0.00011229,2]
[399278934,1766235041278,-258.35726114,0.00011269,2]
[399278936,1766235041287,-500.0,0.00011279,2]
[399278938,1766235041300,-500.0,0.00011283,2]
[399278940,1766235041310,-353.74835527,0.00011283,2]
[399278942,1766235041319,-151.21834691,0.00011283,2]
[399278944,1766235041328,-500.0,0.00011283,2]
[399278946,1766235041338,-150.0,0.00011283,2]
[399278948,1766235041347,-200.0,0.00011283,2]
[399278950,1766235041356,-500.0,0.00011283,2]
[399278952,1766235041365,-500.0,0.00011283,2]
[399278954,1766235041375,-250.0,0.00011283,2]
[399278956,1766235041384,-500.0,0.00011283,2]
[399278958,1766235041393,-805.0,0.00011283,2]
[399278960,1766235041403,-500.0,0.00011283,2]
[399278962,1766235041412,-1143.54,0.0001136,2]
[399278964,1766235041421,-500.0,0.00011366,2]
[399278966,1766235041430,-500.0,0.00011366,2]
[399278968,1766235041439,-613.0,0.00011366,2]
[399278970,1766235041448,-500.0,0.00011366,2]
[399278972,1766235041458,-500.0,0.0001142,2]
[399278974,1766235041469,-500.0,0.0001142,2]
[399278976,1766235041483,-500.0,0.0001142,2]
[399278979,1766235041493,-500.0,0.0001142,2]
[399278981,1766235041502,-805.0,0.0001142,2]
[399278983,1766235041512,-500.0,0.0001142,2]
[399278985,1766235041521,-500.0,0.00011503,2]
[399278987,1766235041531,-500.0,0.00011503,2]
[399278989,1766235041540,-613.0,0.00011503,2]
[399278991,1766235041549,-500.0,0.00011503,2]
[399278993,1766235041558,-500.0,0.00011557,2]
[399278995,1766235041567,-500.0,0.00011557,2]
[399278997,1766235041577,-500.0,0.00011557,2]
[399278999,1766235041586,-500.0,0.00011557,2]
[399279001,1766235041595,-805.0,0.00011557,2]
[399279003,1766235041604,-500.0,0.00011557,2]
[399279005,1766235041613,-1143.54,0.00011634,2]
[399279007,1766235041622,-200.0,0.00011634,2]
[399279009,1766235041631,-249.0,0.00011634,2]
[399279011,1766235041641,-536.41802195,0.00011634,2]
[399279013,1766235041651,-500.0,0.0001164,2]
[399279015,1766235041660,-613.0,0.0001164,2]
[399279017,1766235041669,-500.0,0.0001164,2]
[399279019,1766235041678,-500.0,0.0001164,2]
[399279021,1766235041687,-28929.57302549,0.00011655,2]
[399279023,1766235041697,-500.0,0.00011694,2]
[399279025,1766235041706,-500.0,0.00011694,2]
[399279027,1766235041715,-500.0,0.00011694,2]
[399279029,1766235041724,-500.0,0.00011694,2]
[399279031,1766235041734,-805.0,0.00011694,2]
[399279033,1766235041744,-500.0,0.00011694,2]
[399279035,1766235041753,-21117.31244395,0.00011696,2]
[399279037,1766235041762,-500.0,0.00011777,2]
[399279039,1766235041772,-613.0,0.00011777,2]
[399279041,1766235041781,-500.0,0.00011777,2]
[399279043,1766235041790,-500.0,0.00011777,2]
[399279045,1766235041799,-500.0,0.00011831,2]
[399279047,1766235041808,-500.0,0.00011831,2]
[399279049,1766235041817,-500.0,0.00011831,2]
[399279051,1766235041826,-500.0,0.00011831,2]
[399279053,1766235041836,-805.0,0.00011831,2]
[399279055,1766235041845,-500.0,0.00011831,2]
[399279057,1766235041854,-1143.54,0.00011908,2]
[399279059,1766235041863,-421.69482467,0.00011914,2]
[399279061,1766235041872,-613.0,0.00011914,2]
[399279063,1766235041881,-500.0,0.00011914,2]
[399279065,1766235041891,-500.0,0.00011914,2]
[399279068,1766235041900,-500.0,0.00011968,2]
[399279070,1766235041911,-500.0,0.00011968,2]
[399279072,1766235041920,-500.0,0.00011968,2]
[399279074,1766235041930,-500.0,0.00011968,2]
[399279076,1766235041939,-805.0,0.00011968,2]
[399279078,1766235041948,-500.0,0.00011968,2]
[399279080,1766235041957,-613.0,0.00012051,2]
[399279082,1766235041967,-374.88126201,0.00012051,2]
[399279084,1766235041976,-500.0,0.00012051,2]
[399279086,1766235041985,-480.0,0.0001209,2]
[399279088,1766235041995,-500.0,0.00012105,2]
[399279090,1766235042005,-500.0,0.00012105,2]
[399279091,1766235042015,-500.0,0.00012105,2]
[399279094,1766235042024,-500.0,0.00012105,2]
[399279096,1766235042033,-805.0,0.00012105,2]
[399279098,1766235042043,-500.0,0.00012105,2]
[399279100,1766235042052,-169.13428531,0.00012106,2]
[399279102,1766235042062,-300.0,0.00012109,2]
[399279104,1766235042071,-1143.54,0.00012182,2]
[399279106,1766235042080,-613.0,0.00012188,2]
[399279108,1766235042089,-500.0,0.00012188,2]
[399279110,1766235042099,-500.0,0.00012242,2]
[399279112,1766235042109,-500.0,0.00012242,2]
[399279114,1766235042117,-500.0,0.00012242,2]
[399279116,1766235042127,-500.0,0.00012242,2]
[399279118,1766235042136,-805.0,0.00012242,2]
[399279120,1766235042145,-641.97799798,0.00012242,2]
[399279122,1766235042155,-28929.57302549,0.0001231,2]
[399279124,1766235042164,-613.0,0.00012325,2]
[399279126,1766235042176,-500.0,0.00012325,2]
[399279128,1766235042185,-21117.31244395,0.00012347,2]
[399279130,1766235042195,-150.0,0.00012353,2]
[399279132,1766235042209,-500.0,0.00012379,2]
[399279134,1766235042218,-430.09404515,0.00012379,2]
[399279137,1766235042228,-500.0,0.00012379,2]
[399279139,1766235042237,-500.0,0.00012379,2]
[399279141,1766235042247,-805.0,0.00012379,2]
[399279143,1766235042256,-500.0,0.00012426,2]
[399279145,1766235042266,-162.87078705,0.00012426,2]
[399279147,1766235042277,-1143.54,0.00012456,2]
[399279149,1766235042287,-613.0,0.00012462,2]
[399279151,1766235042296,-274.51270306,0.00012462,2]
[399279153,1766235042305,-500.0,0.00012516,2]
[399279155,1766235042314,-500.0,0.00012516,2]
[399279157,1766235042323,-500.0,0.00012516,2]
[399279159,1766235042332,-805.0,0.00012516,2]
[399279161,1766235042342,-613.0,0.00012599,2]
[399279163,1766235042351,-500.0,0.00012653,2]
[399279165,1766235042360,-500.0,0.00012653,2]
[399279167,1766235042369,-805.0,0.00012653,2]
[399279169,1766235042378,-500.0,0.00012653,2]
[399279171,1766235042388,-1852.42,0.00012693,2]
[399279173,1766235042397,-1143.54,0.0001273,2]
[399279175,1766235042407,-613.0,0.00012736,2]
[399279177,1766235042416,-500.0,0.0001279,2]
[399279179,1766235042425,-500.0,0.0001279,2]
[399279181,1766235042435,-500.0,0.0001279,2]
[399279184,1766235042444,-805.0,0.0001279,2]
[399279186,1766235042453,-613.0,0.00012873,2]
[399279188,1766235042462,-500.0,0.00012927,2]
[399279189,1766235042472,-500.0,0.00012927,2]
[399279191,1766235042481,-805.0,0.00012927,2]
[399279193,1766235042490,-500.0,0.00012927,2]
[399279195,1766235042499,-28929.57302549,0.00012966,2]
[399279198,1766235042510,-1000.0,0.00012974,2]
[399279200,1766235042519,-21117.31244395,0.00012997,2]
[399279202,1766235042528,-1143.55,0.00013004,2]
[399279204,1766235042537,-613.0,0.0001301,2]
[399279206,1766235042546,-500.0,0.00013064,2]
[399279208,1766235042555,-500.0,0.00013064,2]
[399279210,1766235042564,-805.0,0.00013064,2]
[399279212,1766235042574,-500.0,0.00013064,2]
[399279214,1766235042583,-150.0,0.00013099,2]
[399279217,1766235042593,-613.0,0.00013147,2]
[399279219,1766235042602,-381.55341749,0.00013201,2]
[399279221,1766235042612,-461.76159208,0.00013201,2]
[399279224,1766235042621,-805.0,0.00013201,2]
[399279226,1766235042630,-500.0,0.00013201,2]
[399279228,1766235042641,-613.0,0.00013284,2]
[399279230,1766235042659,-169.13428531,0.00013305,2]
[399279232,1766235042668,-805.0,0.00013338,2]
[399279234,1766235042677,-500.0,0.00013338,2]
[399279236,1766235042686,-613.0,0.00013421,2]
[399279238,1766235042695,-182.03550195,0.00013475,2]
[399279240,1766235042705,-805.0,0.00013475,2]
[399279242,1766235042715,-199.59,0.00013503,2]
[399279244,1766235042724,-1502.00400434,0.00013522,2]
[399279246,1766235042733,-613.0,0.00013558,2]
[399279248,1766235042742,-805.0,0.00013612,2]
[399279250,1766235042752,-28929.57302549,0.00013622,2]
[399279252,1766235042761,-21117.31244395,0.00013648,2]
[399279254,1766235042770,-613.0,0.00013695,2]
[399279256,1766235042780,-500.0,0.00013698,2]
[399279258,1766235042789,-500.0,0.00013698,2]
[399279260,1766235042799,-500.0,0.00013698,2]
[399279262,1766235042808,-236.05898136,0.00013698,2]
[399279264,1766235042817,-516.71552925,0.00013698,2]
[399279266,1766235042827,-286.12837513,0.00013698,2]
[399279268,1766235042837,-500.0,0.00013698,2]
[399279270,1766235042846,-500.0,0.00013698,2]
[399279272,1766235042856,-500.0,0.00013698,2]
[399279274,1766235042865,-500.0,0.00013698,2]
[399279276,1766235042874,-500.0,0.00013698,2]
[399279278,1766235042883,-500.0,0.00013698,2]
[399279280,1766235042893,-500.0,0.00013698,2]
[399279282,1766235042902,-500.0,0.00013698,2]
[399279284,1766235042912,-487.49534907,0.00013698,2]
[399279286,1766235042921,-500.0,0.00013698,2]
[399279288,1766235042930,-500.0,0.00013698,2]
[399279290,1766235042939,-500.0,0.00013698,2]
[399279292,1766235042949,-500.0,0.00013698,2]
[399279294,1766235042958,-500.0,0.00013698,2]
[399279296,1766235042967,-500.0,0.00013698,2]
[399279298,1766235042976,-500.0,0.00013698,2]
[399279301,1766235042986,-500.0,0.00013698,2]
[399279303,1766235042995,-500.0,0.00013698,2]
[399279305,1766235043005,-500.0,0.00013698,2]
[399279307,1766235043016,-500.0,0.00013698,2]
[399279309,1766235043026,-500.0,0.00013698,2]
[399279311,1766235043035,-500.0,0.00013698,2]
[399279313,1766235043044,-500.0,0.00013698,2]
[399279315,1766235043053,-500.0,0.00013698,2]
[399279317,1766235043061,-500.0,0.00013698,2]
[399279319,1766235043074,-500.0,0.00013698,2]
[399279321,1766235043084,-500.0,0.00013698,2]
[399279323,1766235043093,-500.0,0.00013698,2]
[399279325,1766235043103,-500.0,0.00013698,2]
[399279327,1766235043112,-500.0,0.00013698,2]
[399279329,1766235043122,-500.0,0.00013698,2]
[399279331,1766235043131,-500.0,0.00013698,2]
[399279333,1766235043140,-500.0,0.00013698,2]
[399279335,1766235043150,-500.0,0.00013698,2]
[399279337,1766235043159,-500.0,0.00013698,2]
[399279339,1766235043168,-500.0,0.00013698,2]
[399279341,1766235043178,-500.0,0.00013698,2]
[399279343,1766235043187,-500.0,0.00013698,2]
[399279345,1766235043197,-506.44561835,0.00013698,2]
[399279347,1766235043211,-500.0,0.00013698,2]
[399279349,1766235043221,-500.0,0.00013698,2]
[399279351,1766235043230,-500.0,0.00013698,2]
[399279353,1766235043239,-500.0,0.00013698,2]
[399279355,1766235043249,-260.33789622,0.00013698,2]
[399279357,1766235043259,-500.0,0.00013698,2]
[399279359,1766235043268,-500.0,0.00013698,2]
[399279362,1766235043279,-316.06547294,0.00013698,2]
[399279364,1766235043288,-500.0,0.00013698,2]
[399279366,1766235043298,-500.0,0.00013698,2]
[399279368,1766235043307,-500.0,0.00013698,2]
[399279370,1766235043316,-500.0,0.00013698,2]
[399279372,1766235043325,-500.0,0.00013698,2]
[399279374,1766235043334,-500.0,0.00013698,2]
[399279376,1766235043343,-509.67980687,0.00013698,2]
[399279378,1766235043352,-500.0,0.00013698,2]
[399279380,1766235043361,-500.0,0.00013698,2]
[399279382,1766235043370,-500.0,0.00013698,2]
[399279384,1766235043379,-500.0,0.00013698,2]
[399279386,1766235043388,-491.39149488,0.00013698,2]
[399279388,1766235043397,-1000.0,0.00013699,2]
[399279390,1766235043407,-166.66,0.00013699,2]
[399279392,1766235043416,-2748.82,0.000137,2]
[399279394,1766235043426,-2748.82,0.000137,2]
[399279396,1766235043435,-2748.82,0.000137,2]
[399279398,1766235043445,-2748.82,0.000137,2]
[399279400,1766235043454,-2748.82,0.000137,2]
[399279402,1766235043463,-805.0,0.00013749,2]